[Event "DEN-ch Seniors 2018"]
[Site "Hvidovre"]
[Date "2018.02.13"]
[Round "2"]
[White "Lilja, Richard"]
[Black "Matras, Ove"]
[Result "1-0"]
[ECO "B10"]
[WhiteElo "2086"]
[BlackElo "1781"]
[Annotator "NA RC"]
[PlyCount "60"]
[EventDate "2018.??.??"]
[EventType "tourn"]
[EventCountry "DEN"]
[SourceTitle "playchess.com"]
[Source "ChessBase"]
[SourceQuality "1"]
[TimeControl "40/5400+30:1800+30"]

1. e4 {[%emt 0:00:00]} c6 {[%emt 0:00:42]} 2. d3 {[%emt 0:00:00]} g6 {[%emt 0:02:17]} 3. g3 {[%emt 0:06:34]} Bg7 {[%emt 0:00:27]} 4. Bg2 {[%emt 0:00:23]} d5 {[%emt 0:01:39]} 5. Nd2 {[%emt 0:00:32]} e5 {[%emt 0:02:01]} 6. Ngf3 {[%emt 0:01:02]} Nd7 {[%emt 0:00:59]} 7. O-O {[%emt 0:00:56]} Ne7 {[%emt 0:03:04]} 8. Re1 {[%emt 0:04:14]} O-O {[%emt 0:01:08]} 9. Nf1 {[%emt 0:03:36]} d4 {[%emt 0:02:56]} 10. h4 {[%emt 0:10:56]} Re8 {[%emt 0:02:09]} 11. N1h2 {[%emt 0:04:58]} f5 {[%emt 0:08:18]} 12. exf5 {[%emt 0:00:17]} gxf5 {[%emt 0:00:08]} 13. c3 {[%emt 0:02:29]} dxc3 {[%emt 0:05:16]} 14. Qb3+ {[%emt 0:06:13]} Nd5 {[%emt 0:00:59]} 15. bxc3 {[%emt 0:01:21]} Qb6 {[%emt 0:00:51]} 16. Qc2 {[%emt 0:04:01]} Nf8 {[%emt 0:03:49]} 17. Rb1 {[%emt 0:02:10]} Qc7 {[%emt 0:05:11]} 18. Qb3 {[%emt 0:08:15]} h6 {[%emt 0:00:43]} 19. c4 {[%emt 0:02:52]} Nf6 {[%emt 0:00:51]} 20. Bb2 {[%emt 0:00:50]} N8d7 {[%emt 0:03:12]} 21. Bh3 {[%emt 0:04:15]} Nc5 {[%emt 0:04:07]} 22. Qa3 {[%emt 0:00:59]} Nxd3 {[%emt 0:05:59]} 23. Qxd3 {[%emt 0:03:02]} e4 {[%emt 0:00:31]} 24. Qd2 {[%emt 0:15:10]} exf3 {[%emt 0:04:28]} 25. Bxf6 {[%emt 0:00:06]} Rxe1+ {[%emt 0:02:09]} 26. Rxe1 {[%emt 0:00:14]} Bxf6 {[%emt 0:00:32]} 27. Qxh6 {[%emt 0:00:22]} Qf7 {[%emt 0:00:31]} 28. Nxf3 {[%emt 0:00:43]} Be6 {[%emt 0:03:43]} 29. Ng5 {[%emt 0:00:27]} Bxg5 {[%emt 0:00:32]} 30. Qxg5+ {[%emt 0:04:38]} Kf8 1-0

[Event "DEN-ch Seniors 2018"]
[Site "Hvidovre"]
[Date "2018.02.13"]
[Round "2"]
[White "Hvenekilde, Jorgen"]
[Black "Nielsen, Carsten Juul"]
[Result "1/2-1/2"]
[ECO "C55"]
[WhiteElo "2044"]
[BlackElo "1891"]
[Annotator "NA RC"]
[PlyCount "41"]
[EventDate "2018.??.??"]
[EventType "tourn"]
[EventCountry "DEN"]
[SourceTitle "playchess.com"]
[Source "ChessBase"]
[SourceQuality "1"]
[TimeControl "40/5400+30:1800+30"]

1. e4 e5 2. Nf3 Nc6 3. Bc4 Nf6 4. d4 exd4 5. O-O d6 6. Nxd4 Nxd4 7. Qxd4 Be7 8. Nc3 O-O 9. h3 c6 10. a4 Qb6 11. Qd3 Nd7 12. a5 Qc5 13. Be3 Qh5 14. f4 Nc5 15. Qe2 Qxe2 16. Bxe2 Ne6 17. Rad1 f5 18. exf5 Rxf5 19. g4 Rf8 20. f5 Nd8 21. Ne4 1/2-1/2

[Event "DEN-ch Seniors 2018"]
[Site "Hvidovre"]
[Date "2018.02.13"]
[Round "2"]
[White "Jorgensen, Orla Eilegaard"]
[Black "Schultz-Pedersen, Jesper"]
[Result "0-1"]
[ECO "B00"]
[WhiteElo "1580"]
[BlackElo "2068"]
[Annotator "NA RC"]
[PlyCount "84"]
[EventDate "2018.??.??"]
[EventType "tourn"]
[EventCountry "DEN"]
[SourceTitle "playchess.com"]
[Source "ChessBase"]
[SourceQuality "1"]
[TimeControl "40/5400+30:1800+30"]

1. e4 {[%emt 0:01:13]} Nc6 {[%emt 0:02:46]} 2. d4 {[%emt 0:06:26]} d5 {[%emt 0:00:18]} 3. f3 {[%emt 0:03:11]} dxe4 {[%emt 0:01:27]} 4. d5 {[%emt 0:00:15]} Ne5 {[%emt 0:00:20]} 5. fxe4 {[%emt 0:04:23]} e6 {[%emt 0:00:54]} 6. Nf3 {[%emt 0:02:45]} Bb4+ {[%emt 0:09:38]} 7. c3 {[%emt 0:02:13]} Bd6 {[%emt 0:00:58]} 8. Bg5 {[%emt 0:04:50]} Nxf3+ {[%emt 0:00:25]} 9. gxf3 {[%emt 0:03:38]} Qxg5 {[%emt 0:00:17]} 10. Bb5+ {[%emt 0:00:36]} Kf8 {[%emt 0:01:58]} 11. Qd4 {[%emt 0:01:02]} Qc1+ {[%emt 0:02:35]} 12. Qd1 {[%emt 0:01:38]} Qxd1+ {[%emt 0:01:19]} 13. Kxd1 {[%emt 0:00:08]} exd5 {[%emt 0:00:56]} 14. exd5 {[%emt 0:00:21]} Nf6 {[%emt 0:00:50]} 15. Re1 {[%emt 0:00:19]} Bf5 {[%emt 0:01:18]} 16. c4 {[%emt 0:02:17]} g6 {[%emt 0:01:25]} 17. Nd2 {[%emt 0:01:13]} Kg7 {[%emt 0:00:46]} 18. Ne4 {[%emt 0:00:47]} Bxe4 {[%emt 0:02:17]} 19. fxe4 {[%emt 0:00:14]} Be5 {[%emt 0:00:12]} 20. Kc2 {[%emt 0:00:31]} Rhd8 {[%emt 0:00:58]} 21. h4 {[%emt 0:01:36]} Rab8 {[%emt 0:00:51]} 22. Rad1 {[%emt 0:00:29]} a6 {[%emt 0:01:19]} 23. Ba4 {[%emt 0:00:09]} b5 {[%emt 0:00:32]} 24. cxb5 {[%emt 0:00:14]} axb5 {[%emt 0:00:06]} 25. Bb3 {[%emt 0:00:17]} Rb6 {[%emt 0:01:25]} 26. Kb1 {[%emt 0:00:43]} Re8 {[%emt 0:02:53]} 27. Bc2 {[%emt 0:01:47]} Nd7 {[%emt 0:01:42]} 28. h5 {[%emt 0:00:31]} Rf6 {[%emt 0:05:32]} 29. Bd3 {[%emt 0:02:02]} Rb8 {[%emt 0:00:48]} 30. Re2 {[%emt 0:01:15]} Rf3 {[%emt 0:03:44]} 31. hxg6 {[%emt 0:00:54]} hxg6 {[%emt 0:00:27]} 32. Rc2 {[%emt 0:00:57]} Bd6 {[%emt 0:01:49]} 33. Rg2 {[%emt 0:01:45]} Re3 {[%emt 0:01:53]} 34. Bc2 {[%emt 0:01:18]} Rh8 {[%emt 0:01:03]} 35. Rdg1 {[%emt 0:00:47]} Rh2 {[%emt 0:00:33]} 36. Rg4 {[%emt 0:00:52]} Ree2 {[%emt 0:00:55]} 37. Rc1 {[%emt 0:02:24]} Ne5 {[%emt 0:00:24]} 38. Rgg1 {[%emt 0:00:28]} Nd3 {[%emt 0:01:29]} 39. Rcd1 {[%emt 0:00:31]} Rxc2 {[%emt 0:00:55]} 40. Rxd3 {[%emt 0:00:09]} Rxb2+ {[%emt 0:30:06]} 41. Kc1 {[%emt 0:30:43]} Bf4+ {[%emt 0:00:11]} 42. Kd1 {[%emt 0:00:17]} Rb1# {[%emt 0:00:02]} 0-1

[Event "DEN-ch Seniors 2018"]
[Site "Hvidovre"]
[Date "2018.02.14"]
[Round "3"]
[White "Schultz-Pedersen, Jesper"]
[Black "Lilja, Richard"]
[Result "1-0"]
[ECO "B23"]
[WhiteElo "2068"]
[BlackElo "2086"]
[Annotator "NA RC"]
[PlyCount "61"]
[EventDate "2018.??.??"]
[EventType "tourn"]
[EventCountry "DEN"]
[SourceTitle "playchess.com"]
[Source "ChessBase"]
[SourceQuality "1"]
[TimeControl "40/5400+30:1800+30"]

{[%evp 8,61,-6,-18,-22,-19,-29,-21,-8,-25,2,-12,2,-51,-14,-8,13,12,30,0,-7,-62,-50,-57,-58,-265,-244,-252,-222,-241,-237,-258,-201,-197,-196,-231,-208,-213,-154,-170,-111,-148,-145,-116,-131,-123,-133,-139,-151,-133,30,24,175,217,188,206]} 1. e4 {[%emt 0:00:00]} c5 {[%emt 0:00:17]} 2. Nc3 {[%emt 0:00:00]} e6 {[%emt 0:01:02]} 3. f4 {[%emt 0:00:22]} d5 {[%emt 0:00:47]} 4. Nf3 {[%emt 0:00:13]} dxe4 {[%emt 0:00:13] B23: Closed Sicilian: Lines without g3} (4... Nc6 5. Bb5 Nge7 6. O-O a6 7. Bxc6+ Nxc6 8. d3 Be7 9. Kh1 b5 10. Qe1 b4 11. Na4 O-O 12. Be3 Qa5 13. b3 Qb5 14. c4 bxc3 15. Nxc3 Qb7 16. exd5 exd5 17. Nxd5 {1-0 (76) Shabalov,A (2544)-Pichot,A (2552) chess.com INT 2018}) 5. Ne5 {[%emt 0:00:51]} Nf6 {[%emt 0:03:33]} 6. Bb5+ {[%emt 0:00:24]} Nbd7 {[%emt 0:01:05]} 7. Qe2 {[%emt 0:00:20]} a6 {[%emt 0:00:49]} 8. Bxd7+ $1 {[%emt 0:00:07]} Bxd7 {[%emt 0:02:00]} 9. Nxe4 {[%emt 0:00:16]} Be7 {[%emt 0:10:38]} 10. b3 $146 {[%emt 0:01:15]} ({Predecessor:} 10. Ng5 O-O {½-½ (32) Topot,I (1228)-Aguilar,S (1550) Chessfriend.com 2003}) 10... O-O {[%emt 0:02:06]} 11. Bb2 {[%emt 0:00:39]} Be8 {[%emt 0:10:11]} 12. Nxf6+ {[%emt 0:08:26]} Bxf6 {[%emt 0:00:10]} 13. O-O {[%emt 0:00:17]} b5 {[%emt 0:01:49]} 14. f5 {[%emt 0:04:37]} (14. a4 $11) 14... exf5 {[%emt 0:24:15]} 15. Rxf5 {[%emt 0:01:35]} Bd7 $1 {[%emt 0:06:04]} 16. Nc6 $2 {[%emt 0:50:27]} (16. Rff1 $15) 16... Bxb2 {[%emt 0:04:41]} ({Weaker is} 16... Bxf5 17. Nxd8 Bxb2 18. Rf1 $11) (16... Bxc6 {[#]} 17. Rxf6 $1 {[%mdl 512]} Re8 18. Qg4 $15) 17. Nxd8 {[%emt 0:02:48]} Bxa1 {[%emt 0:00:05]} 18. Rxf7 Bd4+ {[%emt 0:01:49]} ({Weaker is} 18... Raxd8 19. Rxf8+ Rxf8 20. c3 $15) 19. Kh1 {[%emt 0:04:39]} Raxd8 {[%emt 0:09:47]} 20. Rxf8+ {[%emt 0:01:16]} Rxf8 {[%emt 0:00:02]} 21. h4 {[%emt 0:00:34]} Re8 {[%emt 0:04:50]} 22. Qf3 {[%emt 0:01:14]} b4 {[%emt 0:05:42]} 23. c3 {[%emt 0:01:18]} bxc3 {[%emt 0:00:20]} 24. dxc3 {[%emt 0:00:06]} Re1+ {[%emt 0:05:13]} 25. Kh2 {[%emt 0:00:02]} Bg1+ {[%emt 0:00:51]} 26. Kh1 {[%emt 0:00:41]} Bf2+ {[%emt 0:00:47]} 27. Kh2 {[%emt 0:00:02]} Bxh4 {[%emt 0:00:23]} 28. Qa8+ {[%emt 0:03:36]} Kf7 $2 {[%emt 0:01:45]} (28... Be8 $17 29. Qxa6 Bf6) 29. Qd5+ {[%emt 0:00:54]} Re6 $2 {[%emt 0:02:28]} (29... Ke7 $11 {and Black is okay.}) 30. Qxd7+ {[%emt 0:00:09]} Be7 {[%emt 0:00:04]} 31. Qd5 $18 {[%emt 0:01:21]} 1-0

[Event "DEN-ch Seniors 2018"]
[Site "Hvidovre"]
[Date "2018.02.14"]
[Round "3"]
[White "Nielsen, Jorgen Lovgren"]
[Black "Sorensen, Jens Kristian"]
[Result "1-0"]
[ECO "B16"]
[WhiteElo "2041"]
[BlackElo "1905"]
[Annotator "NA RC"]
[PlyCount "81"]
[EventDate "2018.??.??"]
[EventType "tourn"]
[EventCountry "DEN"]
[SourceTitle "playchess.com"]
[Source "ChessBase"]
[SourceQuality "1"]
[TimeControl "40/5400+30:1800+30"]

{[%evp 8,81,30,28,82,79,72,43,58,36,60,45,49,10,41,6,19,24,54,22,350,38,16,35,68,71,78,54,60,68,164,159,286,114,258,224,210,245,264,233,487,521,672,566,749,922,940,522,594,642,649,752,625,772,831,829,1052,643,970,1378,1298,0,593,677,605,537,450,534,564,579,592,481,29992,29993,-1033,29994]} 1. e4 {[%emt 0:00:00]} c6 {[%emt 0:00:15]} 2. d4 {[%emt 0:00:06]} d5 {[%emt 0:00:20]} 3. Nc3 {[%emt 0:00:18]} dxe4 {[%emt 0:00:29]} 4. Nxe4 {[%emt 0:00:10]} Nf6 {[%emt 0:00:30]} 5. Nxf6+ {[%emt 0:00:37]} gxf6 {[%emt 0:00:17]} 6. Nf3 {[%emt 0:00:40]} Bg4 {[%emt 0:03:02]} 7. Be2 {[%emt 0:01:15]} e6 {[%emt 0:02:41]} 8. O-O {[%emt 0:06:57]} Qc7 {[%emt 0:13:08] B16: Caro-Kann: Bronstein-Larsen Variation} 9. c4 {[%emt 0:02:05]} Nd7 {[%emt 0:03:01]} 10. Be3 {[%emt 0:01:03]} (10. h3 $14 Bf5 11. Qb3) (10. Nh4 h5 11. h3 Bxe2 12. Qxe2 O-O-O 13. Rd1 Bd6 14. d5 Rde8 15. Be3 Bc5 16. Bxc5 Nxc5 {1-0 (34) Adams,M (2715)-Short,N (2687) Sheffield 2011}) 10... O-O-O 11. Qa4 {LiveBook: 4 Games} Kb8 {[%emt 0:12:26]} 12. c5 $146 {[%emt 0:03:41]} ({Find the theoretical novelty and annotate with similar games:} 12. b4 f5 13. Rad1 Bd6 14. h3 Bh5 15. c5 Bf4 16. Bxf4 Qxf4 17. Rd3 {½-½ (28) Kokarev,D (2370)-Yevseev,D (2539) Moscow 1999}) 12... h5 {[%emt 0:03:55]} 13. b4 {[%emt 0:05:02]} b5 $2 ({Black should try} 13... Rg8 $14) 14. cxb6 $2 (14. Qc2 $18) 14... Nxb6 {[%emt 0:12:25]} 15. Qb3 {[%emt 0:02:05]} Nd5 {[%emt 0:05:23]} 16. Rfc1 {[%emt 0:06:39]} Qb6 {[%emt 0:07:01]} 17. Qa4 {[%emt 0:08:35]} Rc8 {[%emt 0:09:55]} 18. Ba6 {[%emt 0:05:04]} Rc7 {[%emt 0:00:55] [#]} ({Black should try} 18... Bxf3 $1 $14 19. gxf3 Rc7) 19. Nd2 $1 {[%emt 0:03:45]} Ka8 {[%emt 0:05:07] [#]} (19... Bf5 $142 20. a3 Ka8) 20. a3 $2 {[%emt 0:02:41]} (20. Rab1 $1 $18) 20... Bh6 {[%emt 0:07:46]} (20... Rg8 $16 {was called for.}) 21. Nc4 {[%emt 0:02:12]} Qb8 {[%emt 0:00:24]} 22. Bxh6 {[%emt 0:01:34]} Rxh6 {[%emt 0:00:11]} 23. Na5 {[%emt 0:01:23]} Nb6 $2 {[%emt 0:01:34]} (23... Rg6 {was necessary.} 24. Bd3 (24. Nxc6 Qe8 $16) (24. Rxc6 Bf3 $16) 24... Rg8) 24. Qb3 {[%emt 0:02:20]} Qe8 {[%emt 0:03:09] [#]} 25. Bb5 $1 {[%emt 0:03:44]} Qd7 {[%emt 0:01:54]} 26. Bxc6+ {[%emt 0:01:32]} Rxc6 {[%emt 0:00:08]} 27. Nxc6 {[%emt 0:00:44]} Bf5 {[%emt 0:00:54]} 28. Qf3 {[%emt 0:01:20]} Nd5 {[%emt 0:00:40]} 29. Rc5 {[%emt 0:01:28]} Rh8 {[%emt 0:00:30]} 30. Rac1 {[%emt 0:01:13]} Bg4 {[%emt 0:00:44]} 31. Qg3 {[%emt 0:02:31]} f5 {[%emt 0:01:07]} 32. Qe5 {[%emt 0:01:05]} Rg8 $1 $11 {[%emt 0:02:09]} 33. Ra5 {[%emt 0:01:58]} (33. Rb5 Qc7 34. Rxd5 Qxe5) 33... Rc8 {[%emt 0:00:57] [#]} 34. Rac5 $2 {[%emt 0:01:09]} ({White should try} 34. Qd6 $3 $18 {[%mdl 512]} Rxc6 {[#]} (34... Qxd6 35. Rxa7#) 35. Rxa7+ $1 {[%mdl 512]} (35. Qxd7 $2 {leads to mate.} Rxc1#) 35... Qxa7 36. Rxc6) 34... f6 $2 {[%emt 0:00:31]} 35. Qg3 {[%emt 0:00:55]} Be2 {[%emt 0:00:35]} 36. Na5 {[%emt 0:02:11]} Rb8 {[%emt 0:00:35]} 37. R1c2 {[%emt 0:05:51]} f4 {[%emt 0:00:35]} 38. Qg6 {[%emt 0:02:13]} f3 {[%emt 0:00:37]} 39. Qe4 {[%emt 0:01:07]} Rg8 {[%emt 0:00:49] [#]} (39... f5 $18 40. Qh4 Bd3) 40. Qh7 $1 {[%emt 0:03:37]} Rxg2+ {[%emt 0:32:37]} 41. Kh1 {[%emt 0:30:10]} 1-0

[Event "DEN-ch Seniors 2018"]
[Site "Hvidovre"]
[Date "2018.02.14"]
[Round "3"]
[White "Hansen, Lars-Henrik Bech"]
[Black "Holler Johansen, Alexander Mikkel Jo"]
[Result "1/2-1/2"]
[ECO "B23"]
[WhiteElo "1972"]
[BlackElo "1904"]
[Annotator "NA RC"]
[PlyCount "29"]
[EventDate "2018.??.??"]
[EventType "tourn"]
[EventCountry "DEN"]
[SourceTitle "playchess.com"]
[Source "ChessBase"]
[SourceQuality "1"]
[TimeControl "40/5400+30:1800+30"]

{[%evp 8,29,12,-26,0,10,-2,-17,-6,-18,6,-14,-4,-8,28,11,29,19,52,55,79,57,65,0]} 1. e4 {[%emt 0:00:00]} c5 {[%emt 0:00:04]} 2. Nc3 {[%emt 0:00:00]} Nc6 {[%emt 0:00:07]} 3. f4 {[%emt 0:02:00]} d6 {[%emt 0:00:42]} 4. Nf3 {[%emt 0:00:07]} g6 {[%emt 0:00:07]} 5. Bc4 {[%emt 0:00:07]} Bg7 {[%emt 0:00:17]} 6. O-O {[%emt 0:00:08]} e6 {[%emt 0:00:08]} 7. d3 {[%emt 0:00:56]} Nge7 {[%emt 0:00:06]} 8. Qe1 {[%emt 0:01:21]} O-O {[%emt 0:04:02] LiveBook: 213 Games} 9. Qh4 {[%emt 0:00:18]} d5 {[%emt 0:01:31]} 10. Bb3 $1 {[%emt 0:01:59]} f5 {[%emt 0:00:17]} (10... Na5 $15) 11. e5 {[%emt 0:01:18]} Rb8 {[%emt 0:07:33]} 12. Ne2 {[%emt 0:07:19]} b5 {[%emt 0:00:26]} 13. c3 {[%emt 0:00:41]} ({Wrong is} 13. Ng5 $2 h6 $19) 13... Bd7 {[%emt 0:07:13]} 14. Bc2 {[%emt 0:00:44]} b4 {[%emt 0:02:13]} 15. d4 $11 {[%emt 0:01:19]} ({White should try} 15. Bb3 $16) 1/2-1/2

[Event "DEN-ch Seniors 2018"]
[Site "Hvidovre"]
[Date "2018.02.15"]
[Round "4"]
[White "Larsen, Peter"]
[Black "Lindestrom, Torsten"]
[Result "0-1"]
[ECO "B01"]
[WhiteElo "2268"]
[BlackElo "2194"]
[Annotator "RC"]
[PlyCount "42"]
[EventDate "2018.??.??"]
[EventType "tourn"]
[EventCountry "DEN"]
[SourceTitle "playchess.com"]
[Source "ChessBase"]
[SourceQuality "1"]
[TimeControl "40/5400+30:1800+30"]

1. e4 {[%emt 0:16:08]} d5 {[%emt 0:00:09]} 2. exd5 {[%emt 0:00:39]} Qxd5 {[%emt 0:00:05]} 3. Nc3 {[%emt 0:00:33]} Qd6 {[%emt 0:00:04]} 4. d4 {[%emt 0:01:01]} Nf6 {[%emt 0:00:04]} 5. Nf3 {[%emt 0:00:15]} g6 {[%emt 0:01:24]} 6. Nb5 {[%emt 0:07:37]} Qb6 {[%emt 0:04:28]} 7. Bf4 {[%emt 0:07:54]} Nd5 {[%emt 0:08:09]} 8. Be5 {[%emt 0:06:13]} f6 {[%emt 0:01:09]} 9. c4 {[%emt 0:00:26]} a6 {[%emt 0:06:25]} 10. cxd5 {[%emt 0:04:19]} fxe5 {[%emt 0:03:36]} 11. Nc3 {[%emt 0:13:31]} Qxb2 {[%emt 0:06:02]} 12. Rc1 {[%emt 0:00:49]} Bf5 {[%emt 0:16:16]} 13. dxe5 {[%emt 0:01:56]} Bh6 {[%emt 0:00:58]} 14. Nd2 {[%emt 0:00:18]} Nd7 {[%emt 0:00:31]} 15. e6 {[%emt 0:16:06]} Nc5 {[%emt 0:07:42]} 16. Be2 {[%emt 0:04:58]} O-O {[%emt 0:05:51]} 17. h4 {[%emt 0:00:32]} Nd3+ {[%emt 0:04:32]} 18. Bxd3 {[%emt 0:00:06]} Bxd3 {[%emt 0:00:05]} 19. h5 {[%emt 0:00:40]} Rf5 {[%emt 0:01:42]} 20. f3 {[%emt 0:03:00]} Re5+ {[%emt 0:07:16]} 21. Nce4 {[%emt 0:00:05]} Qd4 {[%emt 0:00:13]} 0-1

[Event "DEN-ch Seniors 2018"]
[Site "Hvidovre"]
[Date "2018.02.15"]
[Round "4"]
[White "Lilja, Richard"]
[Black "Baliuniene, Margarita"]
[Result "1-0"]
[ECO "B23"]
[WhiteElo "2086"]
[BlackElo "1881"]
[Annotator "NA RC"]
[PlyCount "83"]
[EventDate "2018.??.??"]
[EventType "tourn"]
[EventCountry "DEN"]
[SourceTitle "playchess.com"]
[Source "ChessBase"]
[SourceQuality "1"]
[TimeControl "40/5400+30:1800+30"]

{[%evp 8,82,23,-8,26,4,10,-30,-12,-14,-12,-46,-37,-62,-4,-68,-61,-71,50,-61,-36,-84,-74,-158,-152,-130,-145,-142,-142,-144,-152,-142,-139,-139,-142,-129,-119,-131,-112,-96,-105,-108,-96,-107,0,0,0,50,507,654,835,921,856,1024,808,1105,32767,1176,1158,1140,1158,1140,1269,1201,5526,1424,1290,1339,1251,1741,1843,5506,29994,29990,29994,29990,29990]} 1. e4 {[%emt 0:00:00]} c5 {[%emt 0:00:04]} 2. Nc3 {[%emt 0:00:00]} g6 {[%emt 0:00:24]} 3. f4 {[%emt 0:00:39]} Bg7 {[%emt 0:00:15]} 4. Nf3 {[%emt 0:00:07]} a6 {[%emt 0:01:41] LiveBook: 16 Games} 5. Be2 {[%emt 0:03:26]} e6 {[%emt 0:02:47]} 6. O-O {[%emt 0:00:56] B23: Closed Sicilian: Lines without g3} Ne7 {[%emt 0:00:13]} 7. d3 {[%emt 0:00:57]} O-O {[%emt 0:00:29]} 8. Qe1 {[%emt 0:02:56]} d5 $146 {[%emt 0:04:07]} ({Find the theoretical novelty and annotate with similar games:} 8... f5 9. h4 Nbc6 10. h5 Nd4 11. hxg6 Nxg6 12. Bd1 b5 13. Qg3 Bb7 {0-1 (58) Ciotoli,P-Colombo,P (2170) Italy 1996}) 9. Kh1 {[%emt 0:13:50]} Nbc6 {[%emt 0:01:40]} 10. Qh4 {[%emt 0:07:47]} f5 {[%emt 0:04:25]} ({Better is} 10... Nd4 $15 11. f5 (11. Ng5 $2 h6 $19) 11... exf5) 11. Qf2 {[%emt 0:26:12]} ({Much weaker is} 11. Ng5 h6 $17) (11. e5 $11) 11... Nd4 {[%emt 0:03:31]} 12. Bd1 {[%emt 0:05:20]} b5 {[%emt 0:04:16] [#]} ({Black should try} 12... fxe4 $17 13. dxe4 Bd7) 13. exd5 {[%emt 0:03:12]} (13. e5 $1 $16) 13... exd5 {[%emt 0:02:34]} 14. Nxd4 {[%emt 0:04:03]} Bxd4 {[%emt 0:00:18]} 15. Be3 {[%emt 0:00:07]} (15. Qf3 $15) 15... Bxe3 {[%emt 0:03:28]} 16. Qxe3 {[%emt 0:00:05]} d4 {[%emt 0:00:50]} 17. Qf3 {[%emt 0:00:07]} Rb8 {[%emt 0:05:02]} ({Not} 17... dxc3 18. Qxa8 cxb2 19. Rb1 $11) 18. Nb1 {[%emt 0:05:55]} Nd5 {[%emt 0:00:59]} 19. Qg3 {[%emt 0:02:35]} Ne3 {[%emt 0:00:42]} 20. Rg1 {[%emt 0:03:13]} Bb7 {[%emt 0:03:36]} 21. Nd2 {[%emt 0:01:16]} Re8 {[%emt 0:01:24]} 22. Nf3 {[%emt 0:04:36]} Nxd1 {[%emt 0:10:40]} 23. Raxd1 {[%emt 0:00:19]} Re2 {[%emt 0:00:31]} 24. Rde1 {[%emt 0:04:34]} Rxc2 {[%emt 0:03:58]} 25. Re5 {[%emt 0:02:34] [#]} Qf6 {[%emt 0:17:22]} ({Black should play} 25... Bxf3 $1 $17 26. gxf3 c4 27. Rxf5 cxd3) 26. Rge1 {[%emt 0:02:01]} Rf8 {[%emt 0:02:58]} ({Don't take} 26... Rxb2 27. Qh3 $17) (26... Bxf3 $5 27. Qxf3 Rf8 $15) 27. Re6 {[%emt 0:01:36]} Qf7 $2 {[%emt 0:05:14]} (27... Qd8 {ist zäher.}) 28. Re7 {[%emt 0:01:45]} Qd5 {[%emt 0:00:26]} 29. Qh4 {[%emt 0:00:39]} Rf7 {[%emt 0:14:39]} 30. Rxf7 {[%emt 0:00:07]} Qxf7 {[%emt 0:00:02]} 31. Qd8+ {[%emt 0:01:16]} Qf8 {[%emt 0:00:28]} 32. Re8 {[%emt 0:00:10]} Rc1+ {[%emt 0:00:05]} 33. Ng1 {[%emt 0:00:32]} Qxe8 {[%emt 0:00:27]} 34. Qxe8+ {[%emt 0:00:08]} Kg7 {[%emt 0:00:06]} 35. Qe7+ {[%emt 0:00:28]} Kh6 {[%emt 0:00:04]} 36. Qxb7 {[%emt 0:00:53]} (36. Qf8+ $142 Kh5 37. Qg7 h6 38. Qxb7 g5 39. fxg5 Kxg5 40. Qxa6 Rd1 41. Qxb5) 36... c4 {[%emt 0:00:04]} 37. dxc4 {[%emt 0:01:39]} bxc4 {[%emt 0:00:07]} 38. Qb4 {[%emt 0:00:56]} d3 {[%emt 0:00:17]} 39. h3 {[%emt 0:00:35]} Rc2 {[%emt 0:00:21]} 40. Nf3 {[%emt 0:00:43]} c3 {[%emt 0:30:17]} 41. bxc3 {[%emt 0:30:40]} d2 {[%emt 0:00:01]} 42. Nxd2 {[%emt 0:00:19]} 1-0